bitfinex/quotes_BTCUSD_20251010
["timestamp","ask_amount","ask_price","bid_price","bid_amount"]
[1760133708812,0.28450569,113520.0,113470.0,0.1850549]
[1760133708813,0.28529447,113520.0,113470.0,0.0088129]
[1760133709034,0.28529447,113520.0,113490.0,0.00881134]
[1760133709448,0.28529447,113520.0,113480.0,0.00881212]
[1760133709650,0.28529447,113520.0,113470.0,0.0088129]
[1760133709956,0.28529447,113520.0,113480.0,0.00049763]
[1760133710935,0.28529447,113520.0,113480.0,0.00930975]
[1760133711138,0.28529447,113520.0,113480.0,0.00049763]
[1760133712118,0.28450569,113490.0,113480.0,0.00049763]
[1760133712399,0.28529447,113490.0,113480.0,0.00049763]
[1760133712537,0.28529447,113490.0,113480.0,0.00010525]
[1760133713556,0.32188448,113490.0,113480.0,0.00010525]
[1760133713923,0.38388198,113490.0,113480.0,0.00010525]
[1760133714127,0.55932018,113490.0,113480.0,0.00010525]
[1760133714566,0.49732268,113490.0,113480.0,0.00010525]
[1760133715231,0.75838179,113490.0,113480.0,0.00010525]
[1760133715658,0.75838179,113490.0,113480.0,2.091e-05]
[1760133716046,0.81974505,113490.0,113480.0,2.091e-05]
[1760133716247,0.78925623,113490.0,113480.0,2.091e-05]
[1760133716891,0.81678411,113490.0,113480.0,2.091e-05]
[1760133717054,0.78925623,113490.0,113480.0,2.091e-05]
[1760133717259,0.81590769,113490.0,113480.0,2.091e-05]
[1760133717821,0.91619365,113490.0,113480.0,2.091e-05]
[1760133718419,0.00881756,113410.0,113370.0,0.0004]
[1760133718621,0.00881756,113410.0,113370.0,0.02296409]
[1760133719022,0.18520073,113400.0,113370.0,0.00020543]
[1760133719467,0.0316758,113390.0,113370.0,0.00020543]
[1760133719667,0.18520073,113400.0,113370.0,0.00020543]
[1760133719908,0.008816,113430.0,113370.0,0.00020543]
[1760133720076,0.00881756,113410.0,113370.0,0.00020543]
[1760133720522,0.1763428,113420.0,113370.0,0.00020543]
[1760133720523,0.00881678,113420.0,113370.0,0.00020543]
[1760133720814,0.21423209,113420.0,113370.0,0.00020543]
[1760133721002,0.02907795,113410.0,113370.0,0.00020543]
[1760133721203,0.43718997,113450.0,113370.0,0.00020543]
[1760133721384,0.46599285,113390.0,113370.0,0.00020543]
[1760133721583,0.46599285,113390.0,113340.0,6.496e-05]
[1760133721785,0.46379342,113390.0,113340.0,0.00056197]
[1760133721984,0.54625399,113350.0,113340.0,0.00056197]
[1760133722181,0.54801399,113350.0,113340.0,0.00049701]
[1760133723001,0.52763518,113350.0,113340.0,0.00049701]
[1760133723407,0.56259793,113350.0,113340.0,0.00049701]
[1760133724175,0.52763518,113350.0,113340.0,0.00049701]
[1760133724833,1.02639172,113350.0,113340.0,0.00049701]
[1760133725011,0.82639172,113350.0,113340.0,0.09642701]
[1760133725353,0.93489516,113350.0,113340.0,0.00049701]
[1760133725697,0.93489516,113350.0,113290.0,0.03080724]
[1760133725698,1.02296661,113350.0,113290.0,0.03080724]
[1760133725902,1.0063937,113350.0,113290.0,0.00460724]
[1760133726102,0.04779,113300.0,113290.0,0.00460724]
[1760133726350,0.0496,113300.0,113290.0,0.00460724]
[1760133726569,0.00181,113300.0,113290.0,0.00460724]
[1760133726858,0.09933,113300.0,113290.0,0.00460724]
[1760133727060,0.00177,113300.0,113270.0,0.0015]
[1760133727203,0.03824526,113300.0,113270.0,0.00164907]
[1760133727408,0.03824526,113300.0,113200.0,0.0125]
[1760133727409,0.37397855,113280.0,113200.0,0.0125]
[1760133727625,0.30379809,113240.0,113200.0,0.01264794]
[1760133727868,0.29346698,113240.0,113210.0,0.12892]
[1760133728062,0.29346698,113240.0,113230.0,0.04744]
[1760133728063,0.19346698,113240.0,113230.0,0.04744]
[1760133728264,0.1004094,113240.0,113230.0,0.09371857]
[1760133728510,0.33156097,113280.0,113260.0,0.17657647]
[1760133728687,0.00177,113280.0,113270.0,0.34]
[1760133728886,0.04779,113380.0,113290.0,0.176536]
[1760133729090,0.54767994,113370.0,113230.0,0.05368015]
[1760133729340,0.54767994,113370.0,113190.0,0.00468724]
[1760133729341,0.04779,113250.0,113190.0,0.00468724]
[1760133729525,0.09933,113270.0,113190.0,0.00468724]
[1760133729734,0.14888,113270.0,113190.0,0.18187431]
[1760133729871,0.14888,113270.0,113190.0,0.00518219]
[1760133730070,0.14888,113270.0,113190.0,0.18187399]
[1760133730276,0.04955,113270.0,113190.0,0.18187343]
[1760133730495,0.14888,113270.0,113200.0,0.17667129]
[1760133730707,0.09933,113260.0,113210.0,0.17665922]
[1760133730920,0.04779,113270.0,113220.0,0.34]
[1760133731108,0.14712,113270.0,113220.0,0.34]
[1760133731309,0.09933,113260.0,113200.0,0.17667659]
[1760133731519,0.09636107,113260.0,113210.0,0.51665982]
[1760133731687,0.03384517,113300.0,113220.0,0.1959523]
[1760133731888,0.42192364,113320.0,113240.0,0.51661329]
[1760133732467,0.42192364,113320.0,113240.0,0.35691]
[1760133732690,0.42192364,113320.0,113240.0,0.53352469]
[1760133732930,0.37413364,113320.0,113260.0,0.34]
[1760133733143,0.37413364,113320.0,113260.0,0.53349423]
[1760133733378,0.37413364,113320.0,113260.0,0.34]
[1760133733566,0.09933,113320.0,113260.0,0.34]
[1760133733711,0.09933,113310.0,113260.0,0.34]
[1760133733903,0.09933,113300.0,113260.0,0.51658427]
[1760133734104,0.31162707,113330.0,113320.0,0.34]
[1760133734319,0.31162707,113340.0,113320.0,0.34]
[1760133734510,0.31162707,113340.0,113330.0,0.17647577]
[1760133734771,0.30302122,113340.0,113320.0,0.35691]
[1760133734934,0.30302122,113340.0,113320.0,0.5164863]
[1760133735131,0.29428221,113340.0,113320.0,0.51649116]
[1760133735334,0.29477782,113340.0,113330.0,0.34]
[1760133737679,0.36861796,113340.0,113290.0,0.17653527]
[1760133737878,0.26928796,113340.0,113310.0,0.17650614]
[1760133738078,0.26928796,113340.0,113310.0,0.34]
[1760133739048,0.00049561,113340.0,113310.0,0.34]
[1760133739503,0.00049561,113340.0,113280.0,0.17655035]
[1760133739504,0.09933,113330.0,113280.0,0.17655035]
[1760133739666,0.09933,113330.0,113270.0,0.01691]
[1760133739865,0.09933,113330.0,113260.0,0.18535354]
[1760133740086,0.00049561,113340.0,113260.0,0.18535354]
[1760133740087,0.5359738,113320.0,113260.0,0.18535354]
[1760133740290,0.09933,113310.0,113260.0,0.18535354]
[1760133740553,0.4366438,113320.0,113280.0,0.17654922]
[1760133740709,0.4366438,113320.0,113290.0,0.34]
[1760133740907,0.4366438,113320.0,113280.0,0.51654547]
[1760133741344,0.4366438,113320.0,113280.0,0.52537315]
[1760133741543,0.75040992,113320.0,113280.0,0.51654547]
[1760133741755,0.09933,113310.0,113280.0,0.34]
[1760133741918,0.09933,113310.0,113270.0,0.17656925]
[1760133741919,0.75040992,113320.0,113260.0,0.18539849]
[1760133742219,0.14712,113310.0,113270.0,0.52539681]
[1760133742396,0.14712,113310.0,113280.0,0.17655259]
[1760133742597,0.75040992,113320.0,113270.0,0.51656835]
[1760133742798,0.75040992,113320.0,113240.0,0.22988241]
[1760133742799,0.09933,113310.0,113240.0,0.18544315]
[1760133743019,0.019,113320.0,113230.0,0.1854585]
[1760133743020,0.04779,113280.0,113230.0,0.1854585]
[1760133743220,0.04779,113300.0,113240.0,0.17660354]
[1760133743423,0.12471706,113290.0,113220.0,0.18541904]
[1760133743676,0.09933,113280.0,113200.0,0.19358638]
[1760133743832,0.019,113320.0,113230.0,0.18546256]
[1760133744035,0.09933,113310.0,113260.0,0.34]
[1760133744278,0.14712,113300.0,113260.0,0.33955454]
[1760133744484,0.09933,113290.0,113260.0,0.33955454]
[1760133744780,0.09933,113280.0,113260.0,0.33955454]
[1760133744924,0.14712,113300.0,113260.0,0.5161334]
[1760133745121,0.09933,113290.0,113230.0,0.00014794]
[1760133745326,0.09933,113290.0,113230.0,0.18560982]
[1760133745663,0.09933,113290.0,113240.0,0.18544439]
[1760133746032,0.04779,113300.0,113250.0,0.23845187]
[1760133746033,0.29768518,113260.0,113250.0,0.23845187]
[1760133746232,0.37751422,113300.0,113290.0,0.17653808]
[1760133746357,0.37751422,113300.0,113290.0,0.51653808]
[1760133746553,0.35476684,113300.0,113290.0,0.51653808]
[1760133746863,0.35476684,113300.0,113290.0,0.51453808]
[1760133747047,0.019,113320.0,113310.0,0.51650692]
[1760133747450,0.019,113320.0,113310.0,0.00014794]
[1760133747634,0.019,113320.0,113310.0,0.17665486]
[1760133747992,0.019,113320.0,113310.0,0.00014794]
[1760133748200,0.019,113320.0,113310.0,0.17665486]
[1760133748407,0.019,113320.0,113310.0,0.00014794]
[1760133748605,0.019,113320.0,113310.0,0.17665486]
[1760133748861,0.0088129,113470.0,113310.0,0.17665486]
[1760133748862,0.55054158,113430.0,113400.0,0.34]
[1760133749164,0.59905158,113430.0,113310.0,0.51650686]
[1760133749325,0.59905158,113430.0,113340.0,0.00882301]
[1760133749526,0.37738443,113420.0,113360.0,0.34882145]
[1760133749728,0.37738443,113420.0,113310.0,0.18532569]
[1760133749929,0.09929,113400.0,113320.0,0.34882456]
[1760133750116,0.30201608,113360.0,113320.0,0.34]
[1760133750307,0.30201608,113360.0,113320.0,0.34882456]
[1760133750509,0.30201608,113360.0,113330.0,0.18529711]
[1760133750756,0.30201608,113360.0,113320.0,0.52531198]
[1760133750961,0.30201608,113360.0,113330.0,0.18529573]
[1760133751168,0.30201608,113360.0,113350.0,0.34]
[1760133751367,0.27751199,113360.0,113340.0,0.34]
[1760133751746,0.23340464,113360.0,113340.0,0.34]
[1760133751969,0.23340464,113360.0,113340.0,0.51645589]
[1760133752170,0.23340464,113360.0,113350.0,0.17644464]
[1760133752333,0.2287974,113360.0,113350.0,0.17644464]
[1760133752661,0.2287974,113360.0,113320.0,0.18531521]
[1760133752836,0.00049591,113360.0,113350.0,0.17644464]
[1760133753040,0.04851,113480.0,113360.0,0.00882145]
[1760133753237,0.04851,113480.0,113350.0,0.0245]
[1760133753238,0.04865887,113470.0,113350.0,0.0245]
[1760133753600,0.04865887,113470.0,113330.0,0.20979647]
[1760133753920,0.04865887,113470.0,113240.0,0.1766128]
[1760133753921,0.00881445,113450.0,113240.0,0.1766128]
[1760133754120,0.03807895,113460.0,113240.0,0.1766128]
[1760133754121,0.01172813,113350.0,113250.0,0.17671726]
[1760133754421,0.04851,113340.0,113260.0,0.00882924]
[1760133754627,0.42598904,113340.0,113270.0,0.00882846]
[1760133754773,0.3816273,113340.0,113240.0,0.0088308]
[1760133754968,0.09929,113330.0,113240.0,0.18544312]
[1760133755220,0.09929,113320.0,113260.0,0.00882924]
[1760133755370,0.37747904,113340.0,113300.0,0.17651783]
[1760133755570,0.04851,113310.0,113250.0,0.00883002]
[1760133755810,0.06554,113300.0,113240.0,0.18543891]
[1760133755967,0.04851,113310.0,113250.0,0.32244695]
[1760133756166,0.02294,113320.0,113260.0,0.17658086]
[1760133756516,0.31451257,113320.0,113270.0,0.09077]
[1760133756717,0.31451257,113320.0,113260.0,0.13672601]
[1760133756897,0.0374304,113320.0,113270.0,0.09077]
[1760133757098,0.03059292,113440.0,113280.0,0.23164135]
[1760133757328,0.0233241,113430.0,113290.0,0.34]
[1760133757522,0.23232284,113430.0,113260.0,0.00049591]
[1760133757820,0.04253338,113420.0,113270.0,0.04626]
[1760133757962,0.04253338,113420.0,113260.0,0.00049591]
[1760133757963,0.0308842,113410.0,113260.0,0.00049591]
[1760133758191,0.05119179,113400.0,113260.0,0.00932515]
[1760133758400,0.04723468,113400.0,113270.0,0.00882846]
[1760133758664,0.04723468,113400.0,113260.0,0.34049591]
[1760133758838,0.04723468,113400.0,113260.0,0.00049591]
[1760133758839,0.05195562,113390.0,113260.0,0.00049591]
[1760133759018,0.05195562,113390.0,113290.0,0.34]
[1760133759019,0.02072054,113390.0,113290.0,0.34]
[1760133759222,0.04835717,113440.0,113380.0,0.04626]
[1760133759421,0.00934,113460.0,113380.0,0.13703]
[1760133759628,0.02071721,113430.0,113390.0,0.09077]
[1760133759828,0.02071721,113430.0,113380.0,0.04626]
[1760133759829,0.0002,113460.0,113420.0,0.04626]
[1760133760164,0.0002,113460.0,113320.0,0.13703]
[1760133760165,0.01943092,113420.0,113320.0,0.13703]
[1760133760369,0.0218,113450.0,113320.0,0.13703]
[1760133760370,0.0109,113410.0,113320.0,0.13752591]
[1760133760538,0.0322483,113400.0,113260.0,0.17657523]
[1760133760741,0.01041,113390.0,113290.0,0.0088269]
[1760133760975,0.01041,113390.0,113280.0,0.00882768]
[1760133761143,0.01041,113390.0,113290.0,0.0550869]
[1760133761489,0.02615645,113410.0,113280.0,0.26731973]
[1760133761635,0.02615645,113410.0,113310.0,0.34]
[1760133761835,0.02615645,113410.0,113300.0,0.13703]
[1760133762059,0.01841096,113400.0,113270.0,0.18497927]
[1760133762264,0.02497603,113390.0,113290.0,0.17653203]
[1760133762462,0.01890718,113400.0,113340.0,0.18527969]
[1760133762463,0.00049622,113400.0,113340.0,0.18527969]
[1760133762741,0.04403191,113530.0,113360.0,0.34]
[1760133762944,0.02547286,113530.0,113390.0,0.00851664]
[1760133763144,0.03901215,113520.0,113420.0,0.00881678]
[1760133763278,0.03901215,113520.0,113420.0,0.00792624]
[1760133763279,0.03890832,113520.0,113420.0,0.00792624]
[1760133763621,0.03890832,113520.0,113430.0,0.008816]
[1760133763821,0.01393229,113520.0,113440.0,0.00881523]
[1760133763994,0.01569229,113520.0,113450.0,0.17154933]
[1760133764158,0.02513603,113520.0,113460.0,0.00881367]
[1760133764476,0.02513603,113520.0,113460.0,0.17626879]
[1760133764477,0.01606694,113510.0,113460.0,0.17626879]
[1760133764665,0.00176,113510.0,113490.0,0.17622165]
[1760133764881,0.00176,113510.0,113490.0,0.17592984]
[1760133765108,0.3771348,113560.0,113480.0,0.00881212]
[1760133765418,0.3771348,113560.0,113450.0,0.17628318]
[1760133765419,0.37904377,113560.0,113450.0,0.17628318]
[1760133765645,0.37904377,113560.0,113410.0,0.00881756]
[1760133765646,0.04489259,113540.0,113420.0,0.00881678]
[1760133765828,0.01529584,113530.0,113430.0,0.008816]
[1760133766140,0.08623184,113530.0,113430.0,0.17631322]
[1760133766336,0.08623184,113530.0,113450.0,0.17628911]
[1760133766489,0.08623184,113530.0,113460.0,0.00881367]
[1760133766490,0.04464749,113520.0,113460.0,0.00881367]
[1760133766691,0.04464749,113520.0,113480.0,0.00881212]
[1760133766888,0.04640749,113520.0,113480.0,0.00881212]
[1760133767287,0.06372064,113520.0,113490.0,0.00881134]
[1760133767541,0.01734538,113510.0,113490.0,0.1850346]
[1760133767839,0.01646854,113540.0,113490.0,0.1850346]
[1760133767840,0.42176211,113620.0,113530.0,0.00880824]
[1760133768000,0.42176211,113620.0,113500.0,0.18502202]
[1760133768001,0.01591854,113540.0,113510.0,0.00880979]
[1760133768339,0.94283702,113670.0,113400.0,0.34]
[1760133768340,0.05364281,113660.0,113480.0,0.00881212]
[1760133768486,0.04411347,113590.0,113530.0,0.00880824]
[1760133768703,0.04411347,113590.0,113490.0,0.18503186]
[1760133768704,0.04453239,113570.0,113490.0,0.00881134]
[1760133768907,0.04482753,113550.0,113500.0,0.00881057]
[1760133769170,0.04658753,113550.0,113520.0,0.00880902]
[1760133769390,0.06240188,113540.0,113510.0,0.00880979]
[1760133769589,0.00176,113540.0,113510.0,0.00880979]
[1760133769786,0.00176,113540.0,113520.0,0.17617387]
[1760133770365,0.08984,113540.0,113520.0,0.17617387]
[1760133770661,0.02537151,113530.0,113510.0,0.14352734]
[1760133770875,0.08984,113530.0,113510.0,0.1185794]
[1760133771732,0.04433219,113760.0,113550.0,0.17613386]
[1760133771890,0.04482828,113780.0,113590.0,0.00880359]
[1760133772111,0.04482828,113780.0,113580.0,0.16318801]
[1760133772112,0.4201558,113740.0,113580.0,0.00880436]
[1760133772426,0.04472229,113720.0,113580.0,0.18488639]
[1760133772617,0.01504627,113550.0,113520.0,0.00880902]
[1760133772822,0.08972,113550.0,113530.0,0.17616312]
[1760133773020,0.08972,113550.0,113540.0,0.17614937]
[1760133774040,0.04435089,113600.0,113560.0,0.17147857]
[1760133774242,0.04454969,113590.0,113580.0,0.18489169]
[1760133774419,0.42804,113590.0,113570.0,0.00880514]
[1760133774623,0.08804,113590.0,113580.0,0.17048499]
[1760133774950,0.02877236,113570.0,113550.0,0.00880669]
[1760133775151,0.07292647,113560.0,113550.0,0.00880669]
[1760133775352,0.04997272,113560.0,113550.0,0.00880669]
[1760133775679,0.04997272,113560.0,113550.0,0.18494055]
[1760133775680,0.00176,113560.0,113550.0,0.18494055]
[1760133775972,0.08804,113590.0,113580.0,0.17608733]
[1760133776375,0.11614835,113590.0,113570.0,0.17610063]
[1760133776581,0.04432244,113700.0,113600.0,0.17604036]
[1760133776790,0.04427267,113680.0,113610.0,0.00880204]
[1760133776990,0.04427267,113680.0,113600.0,0.18484317]
[1760133777187,0.04444356,113660.0,113620.0,0.17602512]
[1760133777496,0.07061652,113650.0,113620.0,0.00880126]
[1760133777695,0.16037652,113650.0,113610.0,0.00880204]
[1760133777921,0.04420758,113630.0,113590.0,0.00880359]
[1760133778077,0.04485675,113610.0,113580.0,0.00880436]
[1760133778242,0.34,113600.0,113580.0,0.00880435]
[1760133778451,0.34,113600.0,113570.0,0.18489689]
[1760133778452,0.61160177,113600.0,113570.0,0.18489689]
[1760133778691,0.57201524,113600.0,113570.0,0.18504597]
[1760133778893,0.75812207,113580.0,113570.0,0.00014908]
[1760133779092,0.34,113570.0,113540.0,0.00880746]
[1760133779293,0.34,113570.0,113560.0,0.17611835]
[1760133779294,0.05340064,113570.0,113560.0,0.17611835]
[1760133779492,0.0365142,113570.0,113560.0,0.17611835]
[1760133779673,0.07393954,113580.0,113570.0,0.17610284]
[1760133779873,0.07432784,113580.0,113540.0,0.00880746]
[1760133780083,0.07432784,113580.0,113540.0,0.00014891]
[1760133780406,0.04415411,113560.0,113540.0,0.00014891]
[1760133780621,0.08806,113560.0,113540.0,0.00880746]
[1760133780832,0.08806,113560.0,113530.0,0.18496333]
[1760133780833,0.02070496,113560.0,113530.0,0.18496333]
[1760133781109,0.04479049,113590.0,113530.0,0.00880824]
[1760133781314,0.0442301,113570.0,113530.0,0.00014891]
[1760133781478,0.02413541,113580.0,113540.0,0.00880746]
[1760133781479,0.044589,113580.0,113540.0,0.00880746]
[1760133781681,0.13246493,113580.0,113560.0,0.17610967]
[1760133782016,0.13246493,113580.0,113530.0,0.00014891]
[1760133782017,0.06829369,113570.0,113530.0,0.00014891]
[1760133782216,0.04458518,113550.0,113530.0,0.00014891]
[1760133782423,0.02366359,113540.0,113530.0,0.00014891]
[1760133782623,0.06846044,113540.0,113530.0,0.00014891]
[1760133782822,0.02366359,113540.0,113530.0,0.00014891]
[1760133782987,0.08523393,113550.0,113530.0,0.00014891]
[1760133783187,0.12981911,113550.0,113530.0,0.00014891]
[1760133783390,0.06962711,113540.0,113530.0,0.00014891]
[1760133783727,0.02305563,113540.0,113530.0,0.00014891]
[1760133783926,0.15287474,113550.0,113530.0,0.00014891]
[1760133784132,0.12981911,113550.0,113530.0,0.00014891]
[1760133784282,0.08523393,113550.0,113530.0,0.17630452]
[1760133784481,0.12981911,113550.0,113530.0,0.00014891]
[1760133785564,0.13157911,113550.0,113530.0,0.00014891]
[1760133785762,0.41838694,113540.0,113530.0,0.00014891]
[1760133785982,0.42014694,113540.0,113530.0,0.00014891]
[1760133787193,0.44320144,113540.0,113530.0,0.00014891]
[1760133787389,0.02304209,113530.0,113500.0,8e-05]
[1760133787595,0.04470359,113520.0,113500.0,0.00057683]
[1760133787751,0.04496986,113510.0,113500.0,0.00057683]
[1760133787959,0.04672986,113510.0,113500.0,0.00057683]
[1760133788261,0.04672986,113510.0,113450.0,0.18510165]
[1760133788466,0.04672986,113510.0,113460.0,0.00881367]
[1760133788467,0.13196379,113510.0,113460.0,0.00881367]
[1760133788666,0.04423242,113490.0,113420.0,0.17627634]
[1760133788915,0.04485637,113470.0,113430.0,0.16251822]
[1760133789138,0.08699393,113470.0,113450.0,0.17628465]
[1760133789338,0.37359009,113550.0,113460.0,0.00881367]
[1760133789654,0.38403601,113540.0,113480.0,0.00881212]
[1760133789859,0.38403601,113540.0,113410.0,0.00881756]
[1760133790072,0.04411833,113530.0,113450.0,0.18510356]
[1760133790250,0.37359009,113510.0,113470.0,0.0088129]
[1760133790476,0.41972572,113510.0,113470.0,0.0088129]
[1760133790680,0.41972572,113510.0,113440.0,0.17630437]
[1760133790855,0.41972572,113510.0,113420.0,0.18514876]
[1760133791072,0.41972572,113510.0,113420.0,0.00881678]
[1760133791280,0.41972572,113510.0,113370.0,0.00882067]
[1760133791485,0.04421553,113500.0,113420.0,0.1851401]
[1760133791654,0.04597553,113500.0,113420.0,0.00881678]
[1760133792195,0.04597553,113500.0,113400.0,0.17636684]
[1760133792196,0.04423242,113490.0,113400.0,0.17636684]
[1760133792355,0.00176,113490.0,113410.0,0.00881756]
[1760133792571,0.04424769,113480.0,113400.0,0.12741412]
[1760133792767,0.04600769,113480.0,113390.0,0.04714703]
[1760133792981,0.04600769,113480.0,113430.0,0.008816]
[1760133793174,0.04600769,113480.0,113420.0,0.17632445]
[1760133793380,0.04600769,113480.0,113430.0,0.18512065]
[1760133793964,0.04600769,113480.0,113440.0,0.18510865]
[1760133794156,0.04600769,113480.0,113450.0,0.00881445]
[1760133794365,0.00176,113480.0,113470.0,0.17625804]
[1760133794711,0.00176,113480.0,113450.0,0.00881445]
[1760133794712,0.04600769,113480.0,113450.0,0.18509781]
[1760133794864,0.00176,113480.0,113460.0,0.17627327]
[1760133795078,0.00176,113480.0,113470.0,0.17625804]
[1760133795847,0.04471926,113660.0,113460.0,0.17627327]
[1760133796047,0.0442741,113520.0,113470.0,0.0088129]
[1760133796244,0.04485893,113650.0,113480.0,0.00881212]
[1760133796462,0.04470001,113550.0,113470.0,0.0088129]
[1760133796629,0.04481929,113630.0,113470.0,0.0088129]
[1760133796828,0.04472875,113540.0,113450.0,0.18510021]
[1760133797026,0.04401185,113600.0,113410.0,0.05881756]
[1760133797197,0.0447823,113580.0,113430.0,0.058816]
[1760133797428,0.0447823,113580.0,113430.0,0.05]
[1760133797620,0.0465423,113580.0,113460.0,0.00881367]
[1760133797818,0.0465423,113580.0,113430.0,0.058816]
[1760133797819,0.1346323,113580.0,113430.0,0.058816]
[1760133798060,0.04446712,113560.0,113430.0,0.23512971]
[1760133798235,0.04470001,113550.0,113440.0,0.00881523]
[1760133798438,0.13455001,113550.0,113440.0,0.00881523]
[1760133798660,0.13455001,113550.0,113440.0,0.18511582]
[1760133798877,0.13455001,113550.0,113450.0,0.18509871]
[1760133799386,0.13504736,113550.0,113470.0,0.18506981]
[1760133799538,0.04478827,113530.0,113460.0,0.18507881]
[1760133799740,0.06568381,113530.0,113480.0,0.00881212]
[1760133799942,0.04654827,113530.0,113470.0,0.18506724]
[1760133800140,0.02078339,113520.0,113450.0,0.18510179]
[1760133800435,0.04478738,113510.0,113470.0,0.0088129]
[1760133800641,0.04654738,113510.0,113480.0,0.18505369]
[1760133800874,0.04654738,113510.0,113470.0,0.18506813]
[1760133801441,0.04409506,113490.0,113440.0,0.00881523]
[1760133801638,0.04409506,113490.0,113480.0,0.1762374]
[1760133801639,0.00176,113490.0,113480.0,0.1762374]
[1760133801863,0.00176,113490.0,113470.0,0.00014892]
[1760133802179,0.04585506,113490.0,113470.0,0.00014892]
[1760133802537,0.02177198,113500.0,113470.0,0.00014892]
[1760133802746,0.04413548,113540.0,113470.0,0.00014892]
[1760133802946,0.04589548,113540.0,113470.0,0.00014892]
[1760133803182,0.04589548,113540.0,113460.0,0.00881367]
[1760133803357,0.04589548,113540.0,113450.0,0.00881445]
[1760133803358,0.02100075,113530.0,113450.0,0.00881445]
[1760133803558,0.02100075,113530.0,113430.0,0.03641908]
[1760133803559,0.04462242,113520.0,113430.0,0.03641908]
[1760133803771,0.04442067,113500.0,113430.0,0.03641908]
[1760133803982,0.00176,113500.0,113430.0,0.04523508]
[1760133804182,0.04416363,113490.0,113430.0,0.03641908]
[1760133804452,0.06702621,113490.0,113430.0,0.03641908]
[1760133804593,0.00176,113490.0,113440.0,0.00881523]
[1760133804796,0.04436444,113480.0,113430.0,0.01385536]
[1760133804977,0.04612444,113480.0,113430.0,0.01385536]
[1760133806301,0.04612444,113480.0,113410.0,0.22646376]
[1760133806514,0.04612444,113480.0,113420.0,0.00881678]
[1760133806717,0.04612444,113480.0,113440.0,0.00881523]
[1760133806885,0.04612444,113480.0,113440.0,0.0085055]
[1760133807088,0.00176,113480.0,113440.0,0.18480068]
[1760133807290,0.04612444,113480.0,113410.0,0.22646521]
[1760133807502,0.04612444,113480.0,113420.0,0.00881678]
[1760133807703,0.04612444,113480.0,113420.0,0.17633512]
[1760133807903,0.04612444,113480.0,113430.0,0.008816]
[1760133808105,0.04612444,113480.0,113420.0,0.00881678]
[1760133808321,0.04612444,113480.0,113430.0,0.008816]
[1760133808524,0.04612444,113480.0,113430.0,0.01915845]
[1760133808741,0.04612444,113480.0,113430.0,0.02797445]
[1760133809073,0.00176,113480.0,113470.0,0.17625804]
[1760133809963,0.00176,113480.0,113470.0,0.17480859]
[1760133810133,0.00176,113480.0,113470.0,0.18065556]
[1760133810324,0.00014906,113490.0,113480.0,0.1762425]
[1760133811423,0.00014906,113490.0,113460.0,0.18508477]
[1760133811627,0.00014906,113490.0,113470.0,0.17624912]
[1760133811853,0.00014906,113490.0,113460.0,0.18508477]
[1760133812191,0.00014906,113490.0,113460.0,0.18507171]
[1760133812358,0.00014906,113490.0,113470.0,0.03560504]
[1760133812544,0.00014906,113490.0,113460.0,0.48507171]
[1760133813086,0.00014906,113490.0,113460.0,0.00881367]
[1760133813314,0.00014906,113490.0,113460.0,0.30881367]
[1760133813516,0.00014906,113490.0,113470.0,0.17625703]
[1760133813819,0.04431269,113490.0,113460.0,0.18508612]
[1760133814035,0.00014906,113490.0,113460.0,0.18508612]
[1760133814344,0.00014906,113490.0,113470.0,0.17624595]
[1760133814921,0.00014906,113490.0,113480.0,0.1762425]
[1760133815326,0.00014906,113490.0,113480.0,0.4762425]
[1760133815526,0.00014906,113490.0,113480.0,0.4734397]
[1760133815745,0.04437005,113660.0,113540.0,0.00880746]
[1760133815952,0.04662802,113660.0,113500.0,0.00881057]
[1760133816191,0.04662802,113660.0,113520.0,0.00880902]
[1760133816399,0.02584703,113650.0,113500.0,0.00881057]
[1760133816609,0.04407377,113640.0,113510.0,0.00033901]
[1760133816818,0.04583377,113640.0,113510.0,0.00033901]
[1760133817326,0.04583377,113640.0,113510.0,0.02355536]
[1760133817541,0.04467434,113620.0,113490.0,0.00881134]
[1760133817748,0.04466173,113600.0,113460.0,0.18507819]
[1760133817882,0.04481311,113580.0,113470.0,0.0088129]
[1760133818080,0.04455508,113560.0,113480.0,0.00881212]
[1760133818284,0.0446635,113630.0,113480.0,0.00881212]
[1760133818487,0.04496718,113610.0,113480.0,0.00881212]
[1760133818742,0.04479722,113590.0,113480.0,0.00881212]
[1760133818899,0.00049766,113610.0,113480.0,0.00881212]
[1760133818900,0.04457644,113570.0,113480.0,0.00881212]
[1760133819098,0.04455508,113560.0,113490.0,0.00881134]
[1760133819500,0.04455508,113560.0,113480.0,0.00881212]
[1760133819701,0.04455508,113560.0,113460.0,0.00881367]
[1760133819944,0.04455508,113560.0,113470.0,0.00087887]
[1760133820102,0.04505243,113560.0,113480.0,0.0245888]
[1760133820306,0.04505243,113560.0,113500.0,0.00881057]
[1760133820574,0.04505243,113560.0,113490.0,0.00881134]
[1760133820849,0.04505243,113560.0,113460.0,0.18503964]
[1760133821227,0.04505243,113560.0,113470.0,0.1850623]
[1760133821400,0.04505243,113560.0,113490.0,0.00881134]
[1760133821600,0.04505243,113560.0,113500.0,0.0013403]
[1760133821903,0.04505243,113560.0,113470.0,0.0088129]
[1760133822104,0.04505243,113560.0,113480.0,0.00881212]
[1760133822571,0.04465166,113550.0,113480.0,0.00881212]
[1760133822772,0.04465166,113550.0,113470.0,0.0088129]
[1760133823154,0.04465166,113550.0,113460.0,0.02257956]
[1760133823539,0.04469443,113550.0,113460.0,0.02257956]
[1760133824354,0.04469443,113550.0,113460.0,0.19885099]
[1760133824593,0.04469443,113550.0,113470.0,0.0088129]
[1760133824796,0.04469443,113550.0,113480.0,0.00881212]
[1760133825006,0.04469443,113550.0,113460.0,0.19885248]
[1760133825007,0.04469443,113550.0,113470.0,0.0088129]
[1760133825218,0.04469443,113550.0,113460.0,0.02257956]
[1760133825219,0.00033905,113540.0,113460.0,0.02257956]
[1760133825517,0.04469443,113550.0,113480.0,0.00881212]
[1760133825518,0.04412914,113550.0,113480.0,0.00881212]
[1760133825748,0.04412914,113550.0,113520.0,0.17617907]
[1760133825925,0.04484712,113560.0,113520.0,0.18034839]
[1760133826085,0.04484712,113560.0,113480.0,0.18503531]
[1760133826298,0.04484712,113560.0,113470.0,0.01376348]
[1760133826479,0.04484712,113560.0,113500.0,0.00881057]
[1760133826686,0.04484712,113560.0,113470.0,0.19002023]
[1760133826980,0.04484712,113560.0,113490.0,0.00881134]
[1760133827300,0.04484712,113560.0,113500.0,0.00054003]
[1760133827718,0.04484712,113560.0,113470.0,0.0225756]
[1760133827912,0.04484712,113560.0,113460.0,0.00881367]
[1760133828308,0.04484712,113560.0,113470.0,0.0088129]
[1760133828681,0.00049735,113560.0,113490.0,0.00881134]
[1760133828853,0.04484712,113560.0,113510.0,0.00880979]